bitfinex/quotes_BTCUSD_20241013
["timestamp","ask_amount","ask_price","bid_price","bid_amount"]
[1728791520455,0.02656358,62847.0,62846.0,0.51438598]
[1728791521522,0.02656358,62847.0,62846.0,0.51438586]
[1728791525197,0.02656358,62847.0,62846.0,0.5143859]
[1728791525403,0.02656358,62847.0,62846.0,0.6929859]
[1728791529228,0.001638,62847.0,62846.0,0.6929859]
[1728791530109,0.02656314,62847.0,62846.0,0.6929859]
[1728791530324,0.02656314,62847.0,62846.0,0.70044913]
[1728791532319,0.02656314,62847.0,62846.0,0.69546616]
[1728791532546,0.02656314,62847.0,62846.0,0.70044909]
[1728791535872,0.02656314,62847.0,62846.0,0.70144909]
[1728791536315,0.02656314,62847.0,62846.0,0.70942165]
[1728791536539,0.02656314,62847.0,62846.0,0.71042165]
[1728791537251,0.02656314,62847.0,62846.0,0.70942165]
[1728791537706,0.001638,62847.0,62846.0,0.71142165]
[1728791539847,0.001638,62847.0,62846.0,0.71142175]
[1728791542040,0.02656242,62847.0,62846.0,0.71142175]
[1728791543251,0.02656242,62847.0,62846.0,0.69846616]
[1728791543719,0.02656242,62847.0,62846.0,0.71142132]
[1728791548146,0.001638,62847.0,62846.0,0.71142132]
[1728791549019,0.001638,62847.0,62846.0,0.70395809]
[1728791549249,0.001638,62847.0,62846.0,0.60825809]
[1728791549679,0.001638,62847.0,62846.0,0.60028568]
[1728791551081,0.02656317,62847.0,62846.0,0.60028568]
[1728791554645,0.02656317,62847.0,62846.0,0.6082583]
[1728791555340,0.02656317,62847.0,62846.0,0.59530293]
[1728791555568,0.02656317,62847.0,62846.0,0.60825844]
[1728791556740,0.02656317,62847.0,62846.0,0.60825876]
[1728791558147,0.001638,62847.0,62846.0,0.60825876]
[1728791561051,0.02656331,62847.0,62846.0,0.60825876]
[1728791573827,0.02656331,62847.0,62846.0,0.60825868]
[1728791577948,0.001638,62847.0,62846.0,0.60825868]
[1728791584959,0.00150765,62847.0,62846.0,0.60825868]
[1728791585176,0.00150765,62847.0,62846.0,0.36413467]
[1728791585857,0.00150765,62847.0,62846.0,0.3561619]
[1728791587190,0.00150765,62847.0,62846.0,0.35616203]
[1728791591272,0.00150765,62847.0,62846.0,0.35416203]
[1728791591924,0.00150765,62847.0,62846.0,0.35316203]
[1728791593006,0.11373917,62847.0,62846.0,0.35316203]
[1728791593220,0.1852383,62847.0,62846.0,0.34817892]
[1728791593430,0.11373917,62847.0,62846.0,0.34817892]
[1728791593661,0.18522216,62847.0,62846.0,0.34817892]
[1728791593881,0.11373917,62847.0,62846.0,0.34817892]
[1728791594302,0.28000432,62847.0,62846.0,0.34817892]
[1728791594520,0.18522735,62847.0,62846.0,0.34817892]
[1728791594726,0.11373917,62847.0,62846.0,0.34817892]
[1728791596564,0.16138008,62847.0,62846.0,0.34817892]
[1728791599184,0.04914856,62847.0,62846.0,0.34817892]
[1728791600479,0.00150765,62847.0,62846.0,0.34817892]
[1728791601345,0.00150765,62847.0,62846.0,0.34981692]
[1728791623975,0.00150765,62847.0,62846.0,0.42821692]
[1728791630564,0.04914856,62847.0,62846.0,0.42821692]
[1728791630770,0.00150765,62847.0,62846.0,0.42821692]
[1728791631179,0.04914856,62847.0,62846.0,0.42821692]
[1728791631398,0.00150765,62847.0,62846.0,0.42821692]
[1728791631602,0.00150765,62847.0,62846.0,0.43320032]
[1728791632017,0.00150765,62847.0,62846.0,0.43320033]
[1728791632222,0.00150765,62847.0,62846.0,0.42821692]
[1728791632449,0.00150765,62847.0,62846.0,0.43320033]
[1728791632998,0.00150765,62847.0,62846.0,0.42821692]
[1728791633420,0.00150765,62847.0,62846.0,0.43320031]
[1728791634012,0.00150765,62847.0,62846.0,0.42821692]
[1728791634416,0.00150765,62847.0,62846.0,0.43320033]
[1728791634672,0.04914846,62847.0,62846.0,0.43320033]
[1728791635486,0.00150765,62847.0,62846.0,0.43320033]
[1728791635713,0.04914846,62847.0,62846.0,0.43320033]
[1728791636119,0.04914846,62847.0,62846.0,0.42821692]
[1728791636538,0.00150765,62847.0,62846.0,0.34981692]
[1728791636741,0.04916321,62847.0,62846.0,0.34981692]
[1728791637568,0.00350765,62847.0,62846.0,0.34981692]
[1728791637976,0.00150765,62847.0,62846.0,0.34981692]
[1728791638352,0.00350765,62847.0,62846.0,0.34981692]
[1728791638560,0.07496886,62847.0,62846.0,0.34981692]
[1728791638763,0.00350765,62847.0,62846.0,0.34981692]
[1728791639336,0.07496886,62847.0,62846.0,0.34981692]
[1728791641325,0.18720038,62847.0,62846.0,0.34981692]
[1728791642984,0.21483917,62847.0,62846.0,0.00632821]
[1728791643191,0.5388682,62847.0,62846.0,0.001638]
[1728791643390,0.5388682,62847.0,62846.0,0.00744419]
[1728791644036,0.5388682,62847.0,62846.0,0.001638]
[1728791644593,0.53833702,62847.0,62846.0,0.00745665]
[1728791644772,0.53833702,62847.0,62846.0,0.011638]
[1728791644998,0.53833702,62847.0,62846.0,0.01745665]
[1728791647177,0.53833702,62847.0,62846.0,0.011638]
[1728791647593,0.53833702,62847.0,62846.0,0.01746838]
[1728791647991,0.53833702,62847.0,62846.0,0.011638]
[1728791647992,0.65741905,62847.0,62846.0,0.011638]
[1728791648232,0.53833702,62847.0,62846.0,0.011638]
[1728791648443,0.65056854,62847.0,62846.0,0.011638]
[1728791648577,0.75821666,62847.0,62846.0,0.011638]
[1728791649199,0.65032275,62847.0,62846.0,0.011638]
[1728791649407,0.89315422,62847.0,62846.0,0.011638]
[1728791649620,0.83022275,62847.0,62846.0,0.011638]
[1728791649813,0.99095902,62847.0,62846.0,0.011638]
[1728791650031,0.99795902,62847.0,62846.0,0.013638]
[1728791650279,0.99795902,62847.0,62846.0,0.012638]
[1728791650280,1.18150365,62847.0,62846.0,0.012638]
[1728791650480,0.96950505,62847.0,62846.0,0.012638]
[1728791650678,1.13509157,62847.0,62846.0,0.013638]
[1728791651229,1.13509157,62847.0,62846.0,0.012638]
[1728791651230,1.13009157,62847.0,62846.0,0.012638]
[1728791651432,1.46950505,62847.0,62846.0,0.011638]
[1728791651644,1.63509157,62847.0,62846.0,0.012638]
[1728791652476,1.70429554,62847.0,62846.0,0.012638]
[1728791652877,1.47850505,62847.0,62846.0,0.013638]
[1728791653222,1.47450505,62847.0,62846.0,0.012638]
[1728791653451,1.47573136,62847.0,62846.0,0.012638]
[1728791653726,1.30536899,62847.0,62846.0,0.011638]
[1728791653919,1.47467514,62847.0,62846.0,0.012638]
[1728791654131,1.48867514,62847.0,62846.0,0.013638]
[1728791654333,1.72010375,62847.0,62846.0,0.013638]
[1728791654535,1.70610375,62847.0,62846.0,0.012638]
[1728791654736,1.47467514,62847.0,62846.0,0.012638]
[1728791654908,1.48867514,62847.0,62846.0,0.013638]
[1728791655950,1.2642121,62847.0,62846.0,0.013638]
[1728791656150,1.48867514,62847.0,62846.0,0.013638]
[1728791657212,1.2622121,62847.0,62846.0,0.013638]
[1728791657456,1.48667514,62847.0,62846.0,0.013638]
[1728791657836,1.2622121,62847.0,62846.0,0.013638]
[1728791658078,1.62915419,62847.0,62846.0,0.013638]
[1728791658284,1.71810375,62847.0,62846.0,0.013638]
[1728791658501,1.71749086,62847.0,62846.0,0.013638]
[1728791658748,1.50306298,62847.0,62846.0,0.013638]
[1728791658959,1.48906298,62847.0,62846.0,0.012638]
[1728791659178,1.48506298,62847.0,62846.0,0.011638]
[1728791659405,1.64151772,62847.0,62846.0,0.012638]
[1728791659619,1.74313407,62847.0,62846.0,0.013638]
[1728791659833,1.52421857,62847.0,62846.0,0.013638]
[1728791660927,1.38178068,62847.0,62846.0,0.013638]
[1728791661168,1.88178068,62847.0,62846.0,0.013638]
[1728791663007,2.04315039,62847.0,62846.0,0.013638]
[1728791673092,1.96125039,62847.0,62846.0,0.013638]
[1728791677456,1.96146099,62847.0,62846.0,0.013638]
[1728791678806,2.10386653,62847.0,62846.0,0.013638]
[1728791679240,2.07686653,62847.0,62846.0,0.011638]
[1728791679451,2.08986653,62847.0,62846.0,0.012638]
[1728791679663,2.10386653,62847.0,62846.0,0.013638]
[1728791680083,2.08986653,62847.0,62846.0,0.012638]
[1728791680293,1.94846099,62847.0,62846.0,0.012638]
[1728791680691,1.96146099,62847.0,62846.0,0.013638]
[1728791681684,2.10386653,62847.0,62846.0,0.013638]
[1728791682064,2.10408053,62847.0,62846.0,0.013638]
[1728791682276,2.19283191,62847.0,62846.0,0.013638]
[1728791682480,2.19083191,62847.0,62846.0,0.013638]
[1728791682684,2.00300423,62847.0,62846.0,0.013638]
[1728791682903,2.09172105,62847.0,62846.0,0.013638]
[1728791683853,2.09372105,62847.0,62846.0,0.013638]
[1728791684601,1.93035134,62847.0,62846.0,0.013638]
[1728791686341,1.93235134,62847.0,62846.0,0.013638]
[1728791691531,2.09265879,62847.0,62846.0,0.013638]
[1728791693394,1.93355076,62847.0,62846.0,0.013638]
[1728791694013,1.70908772,62847.0,62846.0,0.013638]
[1728791694224,1.93355076,62847.0,62846.0,0.013638]
[1728791696504,2.09492047,62847.0,62846.0,0.013638]
[1728791696711,1.93355076,62847.0,62846.0,0.013638]
[1728791700839,1.9335354,62847.0,62846.0,0.013638]
[1728791701613,1.9315354,62847.0,62846.0,0.013638]
[1728791701837,1.9335354,62847.0,62846.0,0.013638]
[1728791703819,1.9315354,62847.0,62846.0,0.013638]
[1728791703973,1.9335354,62847.0,62846.0,0.013638]
[1728791704378,1.9336937,62847.0,62846.0,0.013638]
[1728791707136,1.82146218,62847.0,62846.0,0.013638]
[1728791708121,1.81946218,62847.0,62846.0,0.013638]
[1728791708322,1.70723066,62847.0,62846.0,0.013638]
[1728791708501,1.81946218,62847.0,62846.0,0.095738]
[1728791709479,1.9316937,62847.0,62846.0,0.095738]
[1728791712440,1.81946218,62847.0,62846.0,0.095738]
[1728791712618,1.9316937,62847.0,62846.0,0.095738]
[1728791712819,2.09306341,62847.0,62846.0,0.095738]
[1728791713502,1.931929,62847.0,62846.0,0.095738]
[1728791717135,1.917929,62847.0,62846.0,0.094738]
[1728791717337,1.931929,62847.0,62846.0,0.095738]
[1728791717853,1.917929,62847.0,62846.0,0.094738]
[1728791718383,1.904929,62847.0,62846.0,0.093738]
[1728791718692,1.91702548,62847.0,62846.0,0.094738]
[1728791719130,1.91702548,62847.0,62846.0,0.093738]
[1728791719360,1.92902548,62847.0,62846.0,0.094738]
[1728791719560,1.94302548,62847.0,62846.0,0.095738]
[1728791720041,1.92902548,62847.0,62846.0,0.094738]
[1728791720208,1.94302548,62847.0,62846.0,0.095738]
[1728791721138,1.5447299,62847.0,62846.0,0.095738]
[1728791721583,1.94195659,62847.0,62846.0,0.095738]
[1728791726121,1.21749355,62847.0,62846.0,0.095738]
[1728791726330,1.0930095,62847.0,62846.0,0.191938]
[1728791726967,1.25385195,62847.0,62846.0,0.19808463]
[1728791730246,1.36608347,62847.0,62846.0,0.19808463]
[1728791730627,1.36608347,62847.0,62846.0,0.191938]
[1728791732411,1.20524102,62847.0,62846.0,0.191938]
[1728791732749,1.25600335,62847.0,62846.0,0.013638]
[1728791732957,1.2561128,62847.0,62846.0,0.013638]
[1728791733713,1.20535047,62847.0,62846.0,0.013638]
[1728791735433,1.36616705,62847.0,62846.0,0.013638]
[1728791736259,1.25393553,62847.0,62846.0,0.013638]
[1728791736463,1.36616705,62847.0,62846.0,0.013638]
[1728791737709,1.36625054,62847.0,62846.0,0.013638]
[1728791741182,1.20543785,62847.0,62846.0,0.013638]
[1728791741402,1.36625054,62847.0,62846.0,0.013638]
[1728791741585,1.20543785,62847.0,62846.0,0.013638]
[1728791744496,1.36625054,62847.0,62846.0,0.013638]
[1728791744691,1.25401902,62847.0,62846.0,0.185738]
[1728791744884,1.09320633,62847.0,62846.0,0.185738]
[1728791747017,1.09325183,62847.0,62846.0,0.185738]
[1728791756619,1.09332631,62847.0,62846.0,0.185738]
[1728791763653,1.05532631,62847.0,62846.0,0.183738]
[1728791763854,1.06932631,62847.0,62846.0,0.183738]
[1728791763964,1.08332631,62847.0,62846.0,0.183738]
[1728791764168,1.06932631,62847.0,62846.0,0.183738]
[1728791764387,1.05532631,62847.0,62846.0,0.183738]
[1728791764589,1.06932631,62847.0,62846.0,0.183738]
[1728791765714,1.08332631,62847.0,62846.0,0.183738]
[1728791769425,1.08384709,62847.0,62846.0,0.183738]
[1728791771467,1.24466439,62847.0,62846.0,0.183738]
[1728791774748,1.24466439,62847.0,62846.0,0.086738]
[1728791774922,1.35689591,62847.0,62846.0,0.086738]
[1728791775123,1.19607861,62847.0,62846.0,0.086738]
[1728791775745,1.35691532,62847.0,62846.0,0.086738]
[1728791776149,1.19607861,62847.0,62846.0,0.086738]
[1728791781743,1.08384709,62847.0,62846.0,0.086738]
[1728791781920,1.24469552,62847.0,62846.0,0.086738]
[1728791782558,1.132464,62847.0,62846.0,0.086738]
[1728791783042,1.24469552,62847.0,62846.0,0.086738]
[1728791783600,1.24469205,62847.0,62846.0,0.086738]
[1728791788253,1.35692357,62847.0,62846.0,0.086738]
[1728791789688,1.35690866,62847.0,62846.0,0.086738]
[1728791793280,1.35690159,62847.0,62846.0,0.086738]
[1728791793478,1.24467007,62847.0,62846.0,0.086738]
[1728791795379,1.35690159,62847.0,62846.0,0.086738]
[1728791798165,1.35691292,62847.0,62846.0,0.086738]
[1728791798592,1.2446814,62847.0,62846.0,0.086738]
[1728791801254,1.1960625,62847.0,62846.0,0.011638]
[1728791802819,1.19588065,62847.0,62846.0,0.011638]
[1728791803023,1.20088065,62847.0,62846.0,0.011638]
[1728791803233,1.79448065,62847.0,62846.0,0.011638]
[1728791803447,2.0290917,62847.0,62846.0,0.011638]
[1728791809971,1.9354917,62847.0,62846.0,0.011638]
[1728791810441,2.09686141,62847.0,62846.0,0.011638]
[1728791812220,1.70802186,62847.0,62846.0,0.011638]
[1728791812486,1.9324849,62847.0,62846.0,0.011638]
[1728791813732,1.9324849,62847.0,62846.0,0.01042275]
[1728791815319,1.9344849,62847.0,62846.0,0.01042275]
[1728791816186,1.9324849,62847.0,62846.0,0.01042275]
[1728791816969,2.09371832,62847.0,62846.0,0.01042275]
[1728791817430,1.93234861,62847.0,62846.0,0.01042275]
[1728791818010,1.93234861,62847.0,62846.0,0.00992475]
[1728791822881,1.93434861,62847.0,62846.0,0.00992475]
[1728791823113,1.93234861,62847.0,62846.0,0.00992475]
[1728791823314,1.93434861,62847.0,62846.0,0.00992475]
[1728791823514,2.09571832,62847.0,62846.0,0.00992475]
[1728791824857,2.09371832,62847.0,62846.0,0.00992475]
[1728791825058,2.09397302,62847.0,62846.0,0.00992475]
[1728791827019,2.09397302,62847.0,62846.0,0.01156275]
[1728791828689,2.09397302,62847.0,62846.0,0.001638]
[1728791833982,2.09401351,62847.0,62846.0,0.001638]
[1728791834743,2.09401911,62847.0,62846.0,0.001638]
[1728791837720,2.09601911,62847.0,62846.0,0.001638]
[1728791839818,2.09401911,62847.0,62846.0,0.001638]
[1728791844337,1.69609961,62847.0,62846.0,0.001638]
[1728791844519,1.8639929,62847.0,62846.0,0.001638]
[1728791844724,2.09624351,62847.0,62846.0,0.001638]
[1728791845126,2.09424351,62847.0,62846.0,0.001638]
[1728791846192,1.69609961,62847.0,62846.0,0.001638]
[1728791846400,2.09428714,62847.0,62846.0,0.001638]
[1728791851181,2.09628714,62847.0,62846.0,0.001638]
[1728791852855,2.09428714,62847.0,62846.0,0.001638]
[1728791853956,1.93291743,62847.0,62846.0,0.001638]
[1728791854396,1.93491743,62847.0,62846.0,0.001638]
[1728791857704,1.93291743,62847.0,62846.0,0.001638]
[1728791861637,1.93491743,62847.0,62846.0,0.001638]
[1728791863716,0.38360904,62835.0,62834.0,0.1268422]
[1728791863947,0.64952051,62835.0,62834.0,0.0499422]
[1728791864170,0.159157,62831.0,62830.0,0.0769]
[1728791864377,0.159157,62831.0,62828.0,0.0972]
[1728791864378,0.37139352,62829.0,62828.0,0.0972]
[1728791864603,0.259167,62827.0,62825.0,0.000819]
[1728791864805,0.259184,62820.0,62819.0,0.23854393]
[1728791865021,0.43997046,62820.0,62819.0,0.23854393]
[1728791865230,0.6644335,62820.0,62819.0,0.23854393]
[1728791865466,0.159187,62819.0,62818.0,0.000819]
[1728791865671,0.45886344,62819.0,62818.0,0.000819]
[1728791866318,0.29967644,62819.0,62818.0,0.000819]
[1728791866537,0.127079,62819.0,62818.0,0.000819]
[1728791866748,0.19838583,62819.0,62818.0,0.000819]
[1728791866961,0.198388,62819.0,62818.0,0.000819]
[1728791867220,0.204388,62819.0,62818.0,0.000819]
[1728791867415,0.11723152,62819.0,62818.0,0.077719]
[1728791867625,0.011,62819.0,62818.0,0.077719]
[1728791867840,0.11823152,62819.0,62818.0,0.077719]
[1728791868016,0.11223152,62819.0,62818.0,0.077719]
[1728791868281,0.12123152,62819.0,62818.0,0.077719]
[1728791868486,0.16874458,62819.0,62818.0,0.077719]
[1728791869317,0.16474458,62819.0,62818.0,0.077719]
[1728791869497,0.11223152,62819.0,62818.0,0.077719]
[1728791869702,0.12123152,62819.0,62818.0,0.077719]
[1728791869908,0.11623152,62819.0,62818.0,0.077719]
[1728791870082,0.11223152,62819.0,62818.0,0.077719]
[1728791870283,0.11723152,62819.0,62818.0,0.077719]
[1728791870504,0.12123152,62819.0,62818.0,0.077719]
[1728791870670,0.009,62819.0,62818.0,0.077719]
[1728791870877,0.12123152,62819.0,62818.0,0.077719]
[1728791871278,0.009,62819.0,62818.0,0.54070423]
[1728791871485,0.009,62819.0,62818.0,0.3972603]
[1728791872719,0.004,62819.0,62818.0,0.332009]
[1728791872926,0.5,62820.0,62819.0,0.159187]
[1728791873208,0.5,62820.0,62819.0,0.331187]
[1728791874212,0.501,62820.0,62819.0,0.331187]
[1728791875367,0.501,62820.0,62819.0,0.33567389]
[1728791876264,0.5,62820.0,62819.0,0.33567389]
[1728791876487,0.5,62820.0,62819.0,0.33667389]
[1728791876947,0.5,62820.0,62819.0,0.33567389]
[1728791877175,0.5,62820.0,62819.0,0.33767389]
[1728791877621,0.51482688,62820.0,62819.0,0.17848689]
[1728791877848,0.67401088,62820.0,62819.0,0.17848689]
[1728791878340,0.67400978,62820.0,62819.0,0.174]
[1728791879061,0.67400978,62820.0,62819.0,0.173]
[1728791879330,0.159187,62819.0,62818.0,0.000819]
[1728791879567,0.2862443,62819.0,62818.0,0.000819]
[1728791879913,0.33371272,62819.0,62818.0,0.000819]
[1728791880254,0.35744694,62819.0,62818.0,0.000819]
[1728791880608,0.36244694,62819.0,62818.0,0.000819]
[1728791880814,0.36242487,62819.0,62818.0,0.000819]
[1728791881174,0.45109092,62819.0,62818.0,0.000819]
[1728791882319,0.49853359,62819.0,62818.0,0.000819]
[1728791883215,0.50353359,62819.0,62818.0,0.000819]
[1728791883678,0.39130207,62819.0,62818.0,0.000819]
[1728791883877,0.23145536,62819.0,62818.0,0.000819]
[1728791884500,0.34368688,62819.0,62818.0,0.000819]
[1728791885003,0.40847586,62819.0,62818.0,0.000819]
[1728791885224,0.90847586,62819.0,62818.0,0.000819]
[1728791885438,1.32783491,62819.0,62818.0,0.000819]
[1728791885652,1.32783491,62819.0,62818.0,0.00051517]
[1728791886310,1.31783491,62819.0,62818.0,0.00051517]
[1728791886517,1.24596585,62819.0,62818.0,0.00051517]
[1728791886721,1.25890744,62819.0,62818.0,0.00051517]
[1728791887147,1.25990744,62819.0,62818.0,0.00051517]
[1728791887350,1.10778716,62819.0,62818.0,0.00051517]
[1728791887554,1.15396727,62819.0,62818.0,0.00051517]
[1728791888089,1.15396797,62819.0,62818.0,0.00051517]
[1728791888482,0.97777174,62819.0,62818.0,0.00051517]
[1728791889107,0.86554022,62819.0,62818.0,0.00051517]
[1728791889527,0.97777174,62819.0,62818.0,0.00051517]
[1728791889899,0.79441852,62819.0,62818.0,0.00051517]
[1728791890714,0.81935979,62819.0,62818.0,0.00051517]
[1728791892560,0.31935979,62819.0,62818.0,0.00051517]
[1728791893428,0.36676596,62819.0,62818.0,0.00051517]
[1728791894087,0.31935979,62819.0,62818.0,0.00051517]
[1728791894792,0.33421166,62819.0,62818.0,0.00051517]
[1728791895593,0.32321166,62819.0,62818.0,0.00051517]
[1728791896003,0.32221166,62819.0,62818.0,0.00433673]
[1728791896162,0.32221166,62819.0,62818.0,0.00051517]
[1728791896360,0.30235979,62819.0,62818.0,0.00051517]
[1728791896565,0.15802546,62819.0,62818.0,0.00433673]
[1728791896771,0.04579394,62819.0,62818.0,0.35837854]
[1728791896993,0.05179394,62819.0,62818.0,0.33832673]
[1728791897228,0.55179394,62819.0,62818.0,0.33832673]
[1728791897449,0.52685267,62819.0,62818.0,0.4358385]
[1728791898071,0.52685267,62819.0,62818.0,0.33832673]
[1728791899026,0.52085267,62819.0,62818.0,0.33832673]
[1728791899391,0.51985267,62819.0,62818.0,0.33832673]
[1728791899804,0.52485267,62819.0,62818.0,0.33832673]
[1728791900171,0.51,62819.0,62818.0,0.33832673]
[1728791900383,0.5248512,62819.0,62818.0,0.33832673]
[1728791900584,0.5248512,62819.0,62818.0,0.4358385]
[1728791901225,0.0248512,62819.0,62818.0,0.4358385]
[1728791901873,0.0198512,62819.0,62818.0,0.4358385]
[1728791902091,0.04478969,62819.0,62818.0,0.4358385]
[1728791902334,0.04378969,62819.0,62818.0,0.4358385]
[1728791902552,0.04778969,62819.0,62818.0,0.62006251]
[1728791902772,0.03293849,62819.0,62818.0,0.62006251]
[1728791903393,0.02493849,62819.0,62818.0,0.62006251]
[1728791903603,0.02493849,62819.0,62818.0,0.62206251]
[1728791903811,0.02493849,62819.0,62818.0,0.62406251]
[1728791906153,0.02657849,62819.0,62818.0,0.62406251]
[1728791907885,0.00164,62819.0,62818.0,0.62406251]
[1728791909120,0.00164,62819.0,62818.0,0.36532673]
[1728791909315,0.00164,62819.0,62818.0,0.34232673]
[1728791910223,0.00164,62819.0,62818.0,0.34032673]
[1728791911039,0.00164,62819.0,62818.0,0.33832673]
[1728791911239,0.02657815,62819.0,62818.0,0.33832673]
[1728791911445,0.02657815,62819.0,62818.0,0.34032673]
[1728791912037,0.02657815,62819.0,62818.0,0.33832673]
[1728791912239,0.02657815,62819.0,62818.0,0.4041989]
[1728791912704,0.02657815,62819.0,62818.0,0.4051989]
[1728791917189,0.00164,62819.0,62818.0,0.4051989]
[1728791920422,0.02657767,62819.0,62818.0,0.4051989]
[1728791926756,0.02657767,62819.0,62818.0,0.33932673]
[1728791934232,0.02657767,62819.0,62818.0,0.33550517]
[1728791937938,0.00164,62819.0,62818.0,0.33550517]
[1728791940243,0.02657791,62819.0,62818.0,0.33550517]
[1728791941984,0.02657791,62819.0,62818.0,0.34049078]
[1728791942198,0.02657791,62819.0,62818.0,0.45708774]
[1728791945044,0.02657791,62819.0,62818.0,0.45608774]
[1728791945258,0.02657791,62819.0,62818.0,0.45908774]
[1728791945682,0.02657791,62819.0,62818.0,0.48208774]
[1728791946162,0.02657791,62819.0,62818.0,0.48407337]
[1728791946396,0.02857791,62819.0,62818.0,0.65129738]
[1728791946832,0.00364,62819.0,62818.0,0.65129738]
[1728791947701,0.00364,62819.0,62818.0,0.68321738]
[1728791948349,0.00264,62819.0,62818.0,0.68021738]
[1728791948996,0.00364,62819.0,62818.0,0.68821738]
[1728791949200,0.00264,62819.0,62818.0,0.68521738]
[1728791949622,0.00364,62819.0,62818.0,0.68821738]
[1728791950050,0.02857622,62819.0,62818.0,0.68821738]
[1728791952345,0.02857622,62819.0,62818.0,0.68821694]
[1728791954428,0.02857622,62819.0,62818.0,0.68323175]
[1728791954669,0.02857622,62819.0,62818.0,0.68821695]
[1728791955129,0.00364,62819.0,62818.0,0.68821695]
[1728791956036,0.00364,62819.0,62818.0,0.69521695]
[1728791957250,0.00264,62819.0,62818.0,0.68721695]
[1728791957457,0.00364,62819.0,62818.0,0.69521695]
[1728791957663,0.00264,62819.0,62818.0,0.69221695]
[1728791958064,0.00364,62819.0,62818.0,0.70621666]
[1728791958270,0.00364,62819.0,62818.0,0.70123175]
[1728791958494,0.00264,62819.0,62818.0,0.69221666]
[1728791958847,0.00364,62819.0,62818.0,0.70621666]
[1728791959056,0.00364,62819.0,62818.0,0.70123175]
[1728791959293,0.00364,62819.0,62818.0,0.70621666]
[1728791963426,0.00364,62819.0,62818.0,0.70421666]
[1728791966654,0.00364,62819.0,62818.0,0.81644818]
[1728791968407,0.0285749,62819.0,62818.0,0.81644818]
[1728791969222,0.0285749,62819.0,62818.0,0.70421666]
[1728791971190,0.0285749,62819.0,62818.0,0.69923175]
[1728791977273,0.00364,62819.0,62818.0,0.69923175]
[1728791980373,0.02857481,62819.0,62818.0,0.69923175]
[1728791984129,0.02493481,62819.0,62818.0,0.69923175]
[1728791984556,0.02493481,62819.0,62818.0,0.7042165]
[1728791985555,0.00164,62822.0,62821.0,0.214102]
[1728791985764,0.00164,62822.0,62821.0,0.63517603]
[1728791986544,0.00164,62822.0,62821.0,0.64016078]
[1728791986744,0.00264,62822.0,62821.0,0.65216078]
[1728791987349,0.00364,62822.0,62821.0,0.66516078]
[1728791987910,0.00364,62822.0,62821.0,0.66017603]
[1728791988132,0.00364,62822.0,62821.0,0.66516078]
[1728791991007,0.02857465,62822.0,62821.0,0.67261517]
[1728791993817,0.02857465,62822.0,62821.0,0.76591517]
[1728791995381,0.00364,62822.0,62821.0,0.76591517]
[1728791997650,0.00364,62822.0,62821.0,1.19565964]
[1728791997874,0.00364,62822.0,62821.0,1.19765964]
[1728791998317,0.00364,62822.0,62821.0,1.02114397]
[1728792000015,0.00364,62822.0,62821.0,1.19764873]
[1728792000247,0.00364,62822.0,62821.0,1.19564873]
[1728792000482,0.00364,62822.0,62821.0,1.1956713]
[1728792000707,0.02857323,62822.0,62821.0,1.1956713]
[1728792001723,0.02857323,62822.0,62821.0,1.01914397]
[1728792001977,0.02857323,62822.0,62821.0,1.19566091]
[1728792002264,0.00364,62822.0,62821.0,1.08342998]
[1728792002481,0.00364,62822.0,62821.0,1.01914397]
[1728792002913,0.00364,62822.0,62821.0,0.83518365]
[1728792003154,0.00364,62822.0,62821.0,1.01914397]
[1728792003377,0.00364,62822.0,62821.0,0.83518365]
[1728792003647,0.00364,62822.0,62821.0,0.94243042]
[1728792004125,0.00364,62822.0,62821.0,0.6603989]
[1728792004363,0.01853173,62822.0,62821.0,0.6603989]
[1728792006074,0.01853231,62822.0,62821.0,0.6603989]
[1728792009955,0.04346678,62822.0,62821.0,0.6603989]
[1728792011195,0.04346678,62822.0,62821.0,0.65294451]
[1728792011397,0.04346678,62822.0,62821.0,0.64794451]
[1728792011602,0.04346678,62822.0,62821.0,0.54794451]
[1728792012630,0.04327615,62822.0,62821.0,0.54794451]
[1728792013236,0.04322995,62822.0,62821.0,0.54794451]
[1728792013459,0.04322966,62822.0,62821.0,0.54794451]
[1728792013662,0.04284645,62822.0,62821.0,0.54794451]
[1728792014696,0.04265582,62822.0,62821.0,0.54794451]
[1728792016173,0.04260962,62822.0,62821.0,0.54794451]
[1728792017147,0.04260868,62822.0,62821.0,0.54794451]
[1728792018136,0.01767421,62822.0,62821.0,0.54794451]
[1728792019207,0.01710037,62822.0,62821.0,0.54794451]
[1728792021130,0.04203571,62822.0,62821.0,0.54794451]
[1728792021805,0.04169102,62822.0,62821.0,0.54794451]
[1728792022014,0.04169102,62822.0,62821.0,0.66017603]
[1728792022225,0.04169102,62822.0,62821.0,0.84287603]
[1728792022905,0.04169102,62822.0,62821.0,0.89069621]
[1728792023112,0.04169102,62822.0,62821.0,0.84287603]
[1728792023327,0.02679994,62822.0,62821.0,0.84287603]
[1728792023993,0.02632045,62822.0,62821.0,0.84287603]
[1728792024205,0.02632045,62822.0,62821.0,0.91460631]
[1728792024696,0.02632045,62822.0,62821.0,0.91459668]
[1728792025549,0.02632045,62822.0,62821.0,1.09109366]
[1728792025963,0.02632045,62822.0,62821.0,0.91459668]
[1728792026818,0.00138511,62822.0,62821.0,0.91459668]
[1728792027238,0.00138511,62822.0,62821.0,0.84287603]
[1728792029883,0.00138511,62822.0,62821.0,0.89068193]
[1728792031342,0.049948,62831.0,62823.0,0.03192]
[1728792031597,0.049948,62831.0,62830.0,0.182159]
[1728792031846,0.0648421,62831.0,62830.0,0.34338301]
[1728792032108,0.0148941,62831.0,62830.0,0.34338301]
[1728792032350,0.12456162,62837.0,62836.0,0.182144]
[1728792032611,0.13945586,62837.0,62836.0,0.182144]
[1728792032855,0.13945586,62837.0,62836.0,0.2640179]
[1728792033084,0.1643889,62837.0,62836.0,0.2640179]
[1728792034542,0.11672728,62837.0,62836.0,0.2640179]
[1728792034791,0.1643889,62837.0,62836.0,0.2640179]
[1728792035233,0.1673889,62837.0,62836.0,0.2640179]
[1728792035485,0.1713889,62837.0,62836.0,0.2640179]
[1728792035707,0.1673889,62837.0,62836.0,0.2640179]
[1728792035920,0.15649466,62837.0,62836.0,0.2640179]
[1728792036128,0.17139195,62837.0,62836.0,0.2640179]
[1728792036551,0.15649466,62837.0,62836.0,0.2640179]
[1728792036777,0.17139196,62837.0,62836.0,0.2640179]
[1728792038082,0.14645892,62837.0,62836.0,0.2640179]
[1728792039893,0.13156162,62837.0,62836.0,0.2640179]
[1728792040128,0.14645827,62837.0,62836.0,0.2640179]